bitfinex-derivatives/quotes_BTCF0:USTF0_20250509
["timestamp","ask_amount","ask_price","bid_price","bid_amount"]
[1746749130201,1.1915057,103180.0,103170.0,0.99836409]
[1746749130392,1.20106112,103180.0,103170.0,0.99836409]
[1746749130598,1.20106112,103180.0,103170.0,0.85887354]
[1746749130798,1.20106112,103180.0,103170.0,0.86287354]
[1746749130999,0.84026112,103180.0,103170.0,0.86287354]
[1746749131503,0.84026112,103180.0,103170.0,0.86187354]
[1746749131804,0.84026112,103180.0,103170.0,0.85987354]
[1746749133604,0.84026112,103180.0,103170.0,0.87987354]
[1746749135204,0.88204112,103180.0,103170.0,0.87987354]
[1746749135503,0.88204112,103180.0,103170.0,0.85987354]
[1746749137696,0.93554112,103180.0,103170.0,0.85987354]
[1746749138103,0.93554112,103180.0,103170.0,0.69987354]
[1746749139794,0.93554112,103180.0,103170.0,0.50600914]
[1746749140000,0.93554112,103180.0,103170.0,0.69987354]
[1746749140808,0.93554112,103180.0,103170.0,0.69387354]
[1746749141009,0.93754112,103180.0,103170.0,0.69387354]
[1746749144507,0.88404112,103180.0,103170.0,0.69387354]
[1746749145809,0.79540112,103180.0,103170.0,0.69387354]
[1746749146011,0.88556112,103180.0,103170.0,0.69387354]
[1746749148911,0.90326112,103180.0,103170.0,0.69387354]
[1746749150309,0.90326112,103180.0,103170.0,0.67935354]
[1746749150514,0.90326112,103180.0,103170.0,0.69387354]
[1746749155115,0.90326112,103180.0,103170.0,0.94387354]
[1746749155322,0.90326112,103180.0,103170.0,0.75387354]
[1746749156323,0.95389112,103180.0,103170.0,0.91387354]
[1746749156621,0.95389112,103180.0,103170.0,1.11387354]
[1746749158222,0.86373112,103180.0,103170.0,1.11387354]
[1746749158413,0.95389112,103180.0,103170.0,1.08387354]
[1746749158614,0.97811112,103180.0,103170.0,1.08387354]
[1746749159023,0.88795112,103180.0,103170.0,1.08387354]
[1746749159216,0.97811112,103180.0,103170.0,1.08387354]
[1746749160521,0.97811112,103180.0,103170.0,0.91387354]
[1746749161129,0.97811112,103180.0,103170.0,0.75387354]
[1746749161317,0.97811112,103180.0,103170.0,0.69387354]
[1746749161625,0.97811112,103180.0,103170.0,0.50000914]
[1746749161918,1.01921112,103180.0,103170.0,0.50000914]
[1746749162117,1.00151112,103180.0,103170.0,0.50000914]
[1746749162517,1.00151112,103180.0,103170.0,0.69387354]
[1746749163814,1.00151112,103180.0,103170.0,0.50000914]
[1746749164015,1.00151112,103180.0,103170.0,0.69387354]
[1746749166820,1.02573112,103180.0,103170.0,0.69387354]
[1746749168024,0.98463112,103180.0,103170.0,0.69387354]
[1746749168224,0.98463112,103180.0,103170.0,0.85387354]
[1746749168418,0.98463112,103180.0,103170.0,0.66000914]
[1746749168725,0.98463112,103180.0,103170.0,0.60490914]
[1746749168925,1.02463112,103180.0,103170.0,0.60490914]
[1746749169225,1.02463112,103180.0,103170.0,0.37488914]
[1746749170920,1.02463112,103180.0,103170.0,0.06408914]
[1746749171327,0.93447112,103180.0,103170.0,0.06408914]
[1746749171524,1.11475112,103180.0,103170.0,0.35127354]
[1746749172334,0.93447112,103180.0,103170.0,0.35127354]
[1746749172526,1.02459112,103180.0,103170.0,0.35127354]
[1746749173837,0.93447112,103180.0,103170.0,0.35127354]
[1746749174026,1.02459112,103180.0,103170.0,0.35127354]
[1746749176231,0.89447112,103180.0,103170.0,0.35127354]
[1746749176434,0.98459112,103180.0,103170.0,0.35127354]
[1746749176819,0.98459112,103180.0,103170.0,0.84207354]
[1746749177226,0.98459112,103180.0,103170.0,1.00207354]
[1746749177536,0.98459112,103180.0,103170.0,0.82207354]
[1746749179135,0.98459112,103180.0,103170.0,0.66207354]
[1746749180135,0.98459112,103180.0,103170.0,0.82207354]
[1746749180335,0.98459112,103180.0,103170.0,0.62820914]
[1746749180632,1.02499112,103180.0,103170.0,0.62820914]
[1746749181139,1.02499112,103180.0,103170.0,0.46820914]
[1746749185340,1.02499112,103180.0,103170.0,0.66207354]
[1746749186842,0.98459112,103180.0,103170.0,0.66207354]
[1746749187132,0.98459112,103180.0,103170.0,0.99207354]
[1746749187636,0.89447112,103180.0,103170.0,0.99207354]
[1746749187940,0.98459112,103180.0,103170.0,0.99207354]
[1746749189938,0.98459112,103180.0,103170.0,0.82207354]
[1746749191444,0.98459112,103180.0,103170.0,1.00207354]
[1746749193041,0.98459112,103180.0,103170.0,0.82207354]
[1746749194141,0.98459112,103180.0,103170.0,0.66207354]
[1746749195444,1.03199112,103180.0,103170.0,0.46820914]
[1746749195933,1.03199112,103180.0,103170.0,0.66207354]
[1746749196636,1.03199112,103180.0,103170.0,0.66224395]
[1746749197036,1.03199112,103180.0,103170.0,0.46837955]
[1746749197238,1.03199112,103180.0,103170.0,0.66224395]
[1746749201147,1.03199112,103180.0,103170.0,0.45385955]
[1746749201646,1.03199112,103180.0,103170.0,0.41485955]
[1746749203351,1.03199112,103180.0,103170.0,0.67224395]
[1746749203553,1.03199112,103180.0,103170.0,0.47837955]
[1746749206348,1.03199112,103180.0,103170.0,0.42937955]
[1746749207343,1.03199112,103180.0,103170.0,0.47577955]
[1746749210651,1.03199112,103180.0,103170.0,0.37505955]
[1746749213745,1.03199112,103180.0,103170.0,0.42265955]
[1746749214454,1.03199112,103180.0,103170.0,0.47135955]
[1746749217462,1.39279112,103180.0,103170.0,0.47135955]
[1746749220361,1.39279112,103180.0,103170.0,0.48587955]
[1746749221357,1.39479112,103180.0,103170.0,0.48587955]
[1746749225162,1.39479112,103180.0,103170.0,0.47866735]
[1746749226364,1.35635112,103180.0,103170.0,0.67253175]
[1746749226560,1.35635112,103180.0,103170.0,0.87253175]
[1746749226761,1.35635112,103180.0,103170.0,0.47866735]
[1746749227059,1.35635112,103180.0,103170.0,0.63866735]
[1746749227265,1.35635112,103180.0,103170.0,0.83866735]
[1746749227563,1.35635112,103180.0,103170.0,0.63866735]
[1746749228764,1.35635112,103180.0,103170.0,0.64594666]
[1746749229156,1.35635112,103180.0,103170.0,0.63866735]
[1746749231762,1.35459112,103180.0,103170.0,0.63866735]
[1746749234057,1.36459112,103180.0,103170.0,0.62414735]
[1746749234261,1.41219112,103180.0,103170.0,0.46414735]
[1746749236158,1.36459112,103180.0,103170.0,0.67253175]
[1746749236362,1.36459112,103180.0,103170.0,0.47866735]
[1746749236769,1.27727112,103180.0,103170.0,0.67253175]
[1746749237061,1.33459112,103180.0,103170.0,0.83253175]
[1746749237872,1.19227112,103180.0,103170.0,1.03253175]
[1746749238377,1.31579711,103180.0,103170.0,1.03253175]
[1746749238670,1.12195141,103180.0,103170.0,1.03253175]
[1746749238972,0.77159599,103180.0,103170.0,1.03253175]
[1746749239673,0.96544169,103180.0,103170.0,1.03253175]
[1746749239864,0.96544169,103180.0,103170.0,1.72393175]
[1746749240771,0.96444169,103180.0,103170.0,1.72393175]
[1746749241770,0.96444169,103180.0,103170.0,1.52393175]
[1746749241962,0.8409157,103180.0,103170.0,1.52393175]
[1746749242167,0.8922157,103180.0,103170.0,1.71393175]
[1746749242373,0.8922157,103180.0,103170.0,1.52393175]
[1746749242763,0.8922157,103180.0,103170.0,1.72393175]
[1746749242971,0.8922157,103180.0,103170.0,1.03253175]
[1746749243175,0.8922157,103180.0,103170.0,0.83253175]
[1746749245278,0.8922157,103180.0,103170.0,0.67253175]
[1746749246077,0.8922157,103180.0,103170.0,0.83253175]
[1746749246681,0.8922157,103180.0,103170.0,1.02253175]
[1746749257990,0.27627,103180.0,103170.0,2.32473175]
[1746749258682,0.29396,103180.0,103170.0,2.32473175]
[1746749262488,0.30396,103180.0,103170.0,2.61893575]
[1746749264292,0.30296,103180.0,103170.0,2.62093575]
[1746749266596,0.30296,103180.0,103170.0,2.63083248]
[1746749266895,0.5428204,103200.0,103190.0,0.1938269]
[1746749267091,0.4628204,103200.0,103190.0,0.8083469]
[1746749267290,0.4628204,103200.0,103190.0,0.9562469]
[1746749267992,0.4648204,103200.0,103190.0,0.9562469]
[1746749268394,0.1741,103200.0,103190.0,0.9562469]
[1746749268788,0.3679081,103200.0,103190.0,0.9562469]
[1746749269397,0.3689081,103200.0,103190.0,0.9562469]
[1746749270494,0.1751,103200.0,103190.0,0.9562469]
[1746749270698,0.003,103200.0,103190.0,1.80837128]
[1746749271000,0.05539,103210.0,103200.0,0.1938081]
[1746749271195,0.19539,103210.0,103200.0,1.89351248]
[1746749271595,0.14639,103210.0,103200.0,1.89351248]
[1746749271795,0.14242,103210.0,103200.0,1.89351248]
[1746749272096,0.18782,103210.0,103200.0,1.89351248]
[1746749272299,0.19731726,103210.0,103200.0,2.05451248]
[1746749272501,0.3816093,103210.0,103200.0,2.05451248]
[1746749273001,0.3816093,103210.0,103200.0,2.05551248]
[1746749276304,0.3816093,103210.0,103200.0,2.04099248]
[1746749276497,0.3816093,103210.0,103200.0,2.05551248]
[1746749280807,0.18782,103210.0,103200.0,2.05551248]
[1746749285414,0.18782,103210.0,103200.0,2.06514454]
[1746749285613,0.18782,103210.0,103200.0,2.06614454]
[1746749285813,0.18782,103210.0,103200.0,2.15334454]
[1746749286314,0.18782,103210.0,103200.0,2.15534454]
[1746749286514,0.3816093,103210.0,103200.0,2.15534454]
[1746749286712,0.3816093,103210.0,103200.0,2.05851248]
[1746749287014,0.4099093,103210.0,103200.0,1.73369248]
[1746749287212,0.4099093,103210.0,103200.0,1.04289248]
[1746749287213,0.9080493,103210.0,103200.0,1.04289248]
[1746749287914,0.9080493,103210.0,103200.0,0.35149248]
[1746749288603,0.9080493,103210.0,103200.0,0.34949248]
[1746749289214,0.9080493,103210.0,103200.0,0.50749248]
[1746749290116,0.9080493,103210.0,103200.0,0.50649248]
[1746749291218,0.9080493,103210.0,103200.0,0.34649248]
[1746749292510,0.9080493,103210.0,103200.0,0.15268438]
[1746749293923,1.11210531,103210.0,103200.0,0.15268438]
[1746749295924,1.10968531,103210.0,103200.0,0.15268438]
[1746749296913,0.1938269,103190.0,103180.0,0.49189748]
[1746749297123,0.7817869,103190.0,103180.0,0.66641748]
[1746749297318,0.9258869,103190.0,103180.0,0.66579568]
[1746749297525,0.9258869,103190.0,103180.0,0.55497568]
[1746749298620,0.9258869,103190.0,103180.0,0.65257568]
[1746749298821,0.9258869,103190.0,103180.0,0.60477568]
[1746749299023,0.9258869,103190.0,103180.0,0.55997568]
[1746749299522,0.9283069,103190.0,103180.0,0.65367568]
[1746749299914,0.9283069,103190.0,103180.0,0.60777568]
[1746749301327,0.9283069,103190.0,103180.0,0.62229568]
[1746749301628,0.9283069,103190.0,103180.0,0.66819568]
[1746749303721,0.9283069,103190.0,103180.0,0.31768438]
[1746749303927,0.9283069,103190.0,103180.0,0.51153008]
[1746749304120,0.9283069,103190.0,103180.0,0.60523008]
[1746749304829,0.9283069,103190.0,103180.0,0.55753008]
[1746749305329,0.9283069,103190.0,103180.0,0.36368438]
[1746749305729,1.2891069,103190.0,103180.0,0.36368438]
[1746749305929,1.2891069,103190.0,103180.0,0.55753008]
[1746749307230,1.3762669,103190.0,103180.0,0.31768438]
[1746749307623,1.3562669,103190.0,103180.0,0.31768438]
[1746749308130,1.3562669,103190.0,103180.0,0.15768438]
[1746749308928,1.46042768,103190.0,103180.0,0.15768438]
[1746749309329,1.4531789,103190.0,103180.0,0.15768438]
[1746749311934,1.4531789,103190.0,103180.0,0.005]
[1746749313326,1.46030893,103190.0,103180.0,0.005]
[1746749316133,1.46030893,103190.0,103180.0,0.165]
[1746749317434,1.46030893,103190.0,103180.0,0.3075]
[1746749318134,1.46030893,103190.0,103180.0,0.259]
[1746749319333,1.46030893,103190.0,103180.0,0.3075]
[1746749319832,1.2332589,103190.0,103180.0,0.3075]
[1746749320130,1.2617669,103190.0,103180.0,0.32202]
[1746749320335,1.3112669,103190.0,103180.0,0.259]
[1746749321133,1.4081789,103190.0,103180.0,0.31768438]
[1746749322730,1.41556607,103190.0,103180.0,0.31768438]
[1746749323539,1.31865407,103190.0,103180.0,0.31768438]
[1746749323938,1.31865407,103190.0,103180.0,0.165]
[1746749324236,1.31865407,103190.0,103180.0,0.005]
[1746749324439,1.31865407,103190.0,103180.0,0.002]
[1746749325338,0.1938457,103180.0,103170.0,0.29736132]
[1746749325537,0.7421457,103180.0,103170.0,0.31188132]
[1746749326138,0.7421457,103180.0,103170.0,0.47188132]
[1746749326541,0.8372457,103180.0,103170.0,0.47188132]
[1746749328943,0.7902457,103180.0,103170.0,0.47188132]
[1746749330245,0.7421457,103180.0,103170.0,0.47188132]
[1746749332956,0.7421457,103180.0,103170.0,0.45021132]
[1746749334951,0.7421457,103180.0,103170.0,0.42854132]
[1746749336250,0.9163057,103180.0,103170.0,0.42854132]
[1746749336942,0.9163057,103180.0,103170.0,0.40687132]
[1746749338959,0.9163057,103180.0,103170.0,0.38520132]
[1746749339255,0.9640057,103180.0,103170.0,0.38520132]
[1746749339558,0.193902,103150.0,103140.0,0.19779902]
[1746749339755,0.771782,103150.0,103140.0,0.61369902]
[1746749340052,0.771782,103150.0,103140.0,0.77369902]
[1746749340258,0.771782,103150.0,103140.0,1.00869902]
[1746749340557,0.771782,103150.0,103140.0,0.81869902]
[1746749340953,0.771782,103150.0,103140.0,0.79902902]
[1746749341258,0.771782,103150.0,103140.0,0.80202902]
[1746749341560,0.771782,103150.0,103140.0,0.94873177]
[1746749342261,0.771782,103150.0,103140.0,0.95600907]
[1746749342857,0.78153923,103150.0,103140.0,0.95600907]
[1746749343056,0.78153923,103150.0,103140.0,0.93433907]
[1746749343254,0.78153923,103150.0,103140.0,0.77988005]
[1746749343449,0.78153923,103150.0,103140.0,0.97380085]
[1746749344556,0.80576923,103150.0,103140.0,0.97380085]
[1746749344762,0.80576923,103150.0,103140.0,1.06420085]
[1746749344961,0.85276923,103150.0,103140.0,1.06420085]
[1746749345657,0.85276923,103150.0,103140.0,0.87028005]
[1746749345958,0.85276923,103150.0,103140.0,1.06420085]
[1746749346157,0.85276923,103150.0,103140.0,1.25420085]
[1746749346360,0.85276923,103150.0,103140.0,1.06420085]
[1746749346556,0.85276923,103150.0,103140.0,0.9174981]
[1746749347164,0.85276923,103150.0,103140.0,1.1074981]
[1746749347650,0.85276923,103150.0,103140.0,0.9174981]
[1746749348348,0.85276923,103150.0,103140.0,1.0974981]
[1746749348563,0.85276923,103150.0,103140.0,0.9174981]
[1746749349362,0.85673923,103150.0,103140.0,1.1174981]
[1746749349663,0.85673923,103150.0,103140.0,0.9174981]
[1746749350260,0.85673923,103150.0,103140.0,1.0874981]
[1746749350658,0.85673923,103150.0,103140.0,0.9174981]
[1746749351272,0.85673923,103150.0,103140.0,1.0974981]
[1746749351768,0.85673923,103150.0,103140.0,0.91771117]
[1746749351970,0.72673923,103150.0,103140.0,0.21131307]
[1746749352265,0.88045923,103150.0,103140.0,0.00521307]
[1746749352476,0.87677923,103150.0,103140.0,0.19913387]
[1746749352669,0.87677923,103150.0,103140.0,0.34093387]
[1746749353065,0.87677923,103150.0,103140.0,0.50093387]
[1746749355472,0.87677923,103150.0,103140.0,0.50813878]
[1746749357171,0.87677923,103150.0,103140.0,0.70813878]
[1746749357381,0.92437923,103150.0,103140.0,0.69813878]
[1746749357571,0.92437923,103150.0,103140.0,0.50813878]
[1746749357772,0.92437923,103150.0,103140.0,0.70813878]
[1746749358277,0.92437923,103150.0,103140.0,0.50813878]
[1746749359375,0.92437923,103150.0,103140.0,0.26981798]
[1746749359680,0.95947923,103150.0,103140.0,0.16521307]
[1746749361173,0.95947923,103150.0,103140.0,0.16]
[1746749361376,0.1939584,103120.0,103110.0,0.19297258]
[1746749361575,1.1325184,103120.0,103110.0,0.19297258]
[1746749361878,1.2268184,103120.0,103110.0,0.19297258]
[1746749362175,1.2705184,103120.0,103110.0,0.20626983]
[1746749362380,1.2705184,103120.0,103110.0,0.21526983]
[1746749362879,1.2705184,103120.0,103110.0,0.40924713]
[1746749363182,1.2705184,103120.0,103110.0,0.22226983]
[1746749363576,1.2705184,103120.0,103110.0,0.41624713]
[1746749363981,1.2729384,103120.0,103110.0,0.41624713]
[1746749364282,1.2292384,103120.0,103110.0,0.42355058]
[1746749364583,1.2292384,103120.0,103110.0,0.31857328]
[1746749365983,1.2292384,103120.0,103110.0,0.92845058]
[1746749366284,1.2292384,103120.0,103110.0,0.73447328]
[1746749368386,1.2292384,103120.0,103110.0,0.88735058]
[1746749368584,1.2292384,103120.0,103110.0,0.92845058]
[1746749368776,1.2292384,103120.0,103110.0,1.12845058]
[1746749368976,1.2292784,103120.0,103110.0,1.52845058]
[1746749369184,1.2332484,103120.0,103110.0,1.32845058]
[1746749369483,1.2332484,103120.0,103110.0,1.51845058]
[1746749372186,1.2332484,103120.0,103110.0,1.11845058]
[1746749373086,1.2574884,103120.0,103110.0,1.28845058]
[1746749373585,1.2574884,103120.0,103110.0,1.31845058]
[1746749374685,0.5001884,103120.0,103110.0,1.65925058]
[1746749376291,0.5465884,103120.0,103110.0,1.64925058]
[1746749376480,0.5465884,103120.0,103110.0,1.28925058]
[1746749377088,0.9073884,103120.0,103110.0,1.10845058]
[1746749377288,0.9073884,103120.0,103110.0,0.92845058]
[1746749377488,0.9548884,103120.0,103110.0,0.92845058]
[1746749377891,0.9548884,103120.0,103110.0,0.83945058]
[1746749378589,0.9548884,103120.0,103110.0,0.60017328]
[1746749378887,0.9548884,103120.0,103110.0,0.79415058]
[1746749379990,0.9548884,103120.0,103110.0,0.78684713]
[1746749380183,0.9548884,103120.0,103110.0,0.59286983]
[1746749381090,0.9548884,103120.0,103110.0,0.78684713]
[1746749381691,0.9548884,103120.0,103110.0,0.59286983]
[1746749382789,1.0440084,103120.0,103110.0,0.59286983]
[1746749388592,0.8678884,103120.0,103110.0,0.78684713]
[1746749388786,1.0465284,103120.0,103110.0,0.83014713]
[1746749389298,1.0465284,103120.0,103110.0,0.63616983]
[1746749390590,1.0465284,103120.0,103110.0,0.68146983]
[1746749392086,0.71567,103120.0,103110.0,1.05544713]
[1746749392290,0.65927,103120.0,103110.0,1.25594713]
[1746749392898,0.8532284,103120.0,103110.0,1.25594713]
[1746749393292,0.4031884,103120.0,103110.0,1.25594713]
[1746749393493,0.8532284,103120.0,103110.0,1.25594713]
[1746749393795,0.8532284,103120.0,103110.0,1.42594713]
[1746749393996,0.7639884,103120.0,103110.0,1.41894713]
[1746749394197,0.18063,103120.0,103110.0,2.81812713]
[1746749394694,0.18063,103120.0,103110.0,2.81112713]
[1746749394895,0.18063,103120.0,103110.0,2.81212713]
[1746749395096,0.18063,103120.0,103110.0,2.56212713]
[1746749395298,0.3745884,103120.0,103110.0,2.56212713]
[1746749395807,0.18063,103120.0,103110.0,2.56212713]
[1746749397902,0.3745884,103120.0,103110.0,2.56212713]
[1746749398205,0.18063,103120.0,103110.0,2.56212713]
[1746749399608,0.8164295,103140.0,103110.0,2.56212713]
[1746749399609,0.11,103140.0,103130.0,0.3393855]
[1746749399798,0.15,103140.0,103130.0,1.3914089]
[1746749399995,0.15,103140.0,103130.0,1.5640689]
[1746749400199,0.15,103140.0,103130.0,1.7240689]
[1746749400401,0.15,103140.0,103130.0,1.73369651]
[1746749401009,0.15,103140.0,103130.0,1.73469651]
[1746749401207,0.0415,103150.0,103140.0,0.1939208]
[1746749401401,0.01,103150.0,103140.0,2.3177208]
[1746749401705,0.01,103150.0,103140.0,2.4146728]
[1746749402212,0.01,103150.0,103140.0,2.5746728]
[1746749402908,0.011,103150.0,103140.0,2.5746728]
[1746749403603,0.0535,103150.0,103140.0,2.5746728]
[1746749403909,0.247402,103150.0,103140.0,2.4777208]
[1746749404109,0.290602,103150.0,103140.0,2.4777208]
[1746749406505,0.0967,103150.0,103140.0,2.4777208]
[1746749407999,0.290602,103150.0,103140.0,2.4777208]
[1746749408204,0.290602,103150.0,103140.0,2.4271208]
[1746749408405,0.290602,103150.0,103140.0,1.8671208]
[1746749408617,0.0535,103150.0,103140.0,2.2277208]
[1746749409001,0.247402,103150.0,103140.0,2.2277208]
[1746749409205,0.291402,103150.0,103140.0,2.2277208]
[1746749410413,0.2203,103170.0,103140.0,2.593]
[1746749410606,0.1422741,103190.0,103170.0,0.048462]
[1746749410806,0.1425087,103200.0,103190.0,0.1938269]
[1746749411013,0.2825087,103200.0,103190.0,1.1046269]
[1746749411208,0.2825087,103200.0,103190.0,1.2952269]
[1746749412617,0.2825087,103200.0,103190.0,1.2962269]
[1746749413111,0.2825087,103200.0,103190.0,1.2972269]
[1746749413711,0.2825087,103200.0,103190.0,1.3850269]
[1746749413904,0.2825087,103200.0,103190.0,2.4923269]
[1746749414604,0.2277,103200.0,103190.0,2.4923269]
[1746749414807,0.1838,103200.0,103190.0,2.4923269]
[1746749415321,0.1838,103200.0,103190.0,2.49946123]
[1746749416009,0.3776081,103200.0,103190.0,2.49946123]
[1746749416206,0.7823081,103200.0,103190.0,1.66026123]
[1746749416402,0.7823081,103200.0,103190.0,1.47026123]
[1746749417109,0.8275081,103200.0,103190.0,0.16913433]
[1746749417310,1.0775081,103200.0,103190.0,0.20296123]
[1746749417610,0.1938269,103190.0,103170.0,0.4577302]
[1746749417814,0.2352457,103180.0,103170.0,0.24962145]
[1746749418010,0.4304457,103180.0,103170.0,0.24962145]
[1746749418215,0.4304457,103180.0,103170.0,0.40962145]
[1746749419813,0.4304457,103180.0,103170.0,0.58962145]
[1746749420022,0.4304457,103180.0,103170.0,0.40962145]
[1746749420217,0.4314457,103180.0,103170.0,0.40962145]
[1746749420611,0.7922457,103180.0,103170.0,0.40962145]
[1746749420910,0.8360457,103180.0,103170.0,0.40962145]
[1746749421418,0.8360457,103180.0,103170.0,0.16730165]
[1746749421620,0.8360457,103180.0,103170.0,0.36116605]
[1746749422109,0.8360457,103180.0,103170.0,0.00730165]
[1746749422303,0.8360457,103180.0,103160.0,0.2908064]
[1746749422304,0.1938644,103170.0,103160.0,0.2908064]
[1746749422506,0.8789844,103170.0,103160.0,0.2908064]
[1746749423319,0.8789844,103170.0,103160.0,0.4508064]
[1746749423709,0.8789844,103170.0,103160.0,0.4518064]
[1746749424519,0.8789844,103170.0,103160.0,0.4528064]
[1746749425819,0.8789844,103170.0,103160.0,0.162]
[1746749426120,0.8789844,103170.0,103160.0,0.002]
[1746749426418,0.8789844,103170.0,103160.0,0.00920274]
[1746749426924,0.8789844,103170.0,103160.0,0.20308594]
[1746749427218,0.8789844,103170.0,103160.0,0.36308594]
[1746749428224,0.8789844,103170.0,103160.0,0.16920274]
[1746749429823,0.8789844,103170.0,103160.0,0.36308594]
[1746749430320,0.2352,103170.0,103160.0,1.17388594]
[1746749430525,0.2352,103170.0,103160.0,1.30408594]
[1746749432023,0.2352,103170.0,103160.0,2.41138594]
[1746749432415,0.4290644,103170.0,103160.0,2.41138594]
[1746749435725,0.4290644,103170.0,103160.0,2.36958594]
[1746749437125,0.4290644,103170.0,103160.0,2.32558594]
[1746749437326,0.4290644,103170.0,103160.0,2.32458594]
[1746749437327,0.4310644,103170.0,103160.0,2.32458594]
[1746749437822,0.4310644,103170.0,103160.0,1.58778594]
[1746749438030,0.88017245,103170.0,103160.0,0.58310274]
[1746749438330,0.98710445,103170.0,103160.0,0.5759]
[1746749438519,0.98710445,103170.0,103160.0,0.5064]
[1746749438829,0.193902,103150.0,103140.0,0.34450177]
[1746749439128,1.144622,103150.0,103140.0,0.19779902]
[1746749439322,1.190222,103150.0,103140.0,0.19779902]
[1746749440228,1.190222,103150.0,103140.0,0.36522188]
[1746749440525,1.190222,103150.0,103140.0,0.37022188]
[1746749441332,1.190222,103150.0,103140.0,0.17630108]
[1746749441523,1.19999993,103150.0,103140.0,0.37022188]
[1746749441720,1.24199993,103150.0,103140.0,0.37022188]
[1746749442219,1.24199993,103150.0,103140.0,0.17630108]
[1746749442629,1.24199993,103150.0,103140.0,0.17330108]
[1746749442830,1.24299993,103150.0,103140.0,0.17330108]
[1746749443231,1.35130798,103150.0,103140.0,0.17330108]
[1746749443424,1.35230798,103150.0,103140.0,0.17130108]
[1746749443933,1.35230798,103150.0,103140.0,0.16387822]
[1746749444427,1.44925999,103150.0,103140.0,0.16387822]
[1746749446027,1.15487993,103150.0,103140.0,0.35779902]
[1746749446333,1.22311993,103150.0,103140.0,0.16387822]
[1746749446630,1.22311993,103150.0,103140.0,0.20617822]
[1746749446829,1.13487993,103150.0,103140.0,0.81599902]
[1746749447030,0.86231993,103150.0,103140.0,0.85829902]
[1746749447231,0.86231993,103150.0,103140.0,0.90019902]
[1746749448932,0.86231993,103150.0,103140.0,0.66397822]
[1746749448933,0.97062798,103150.0,103140.0,0.66397822]
[1746749449126,0.97062798,103150.0,103140.0,0.85789902]
[1746749449431,0.97062798,103150.0,103140.0,0.66397822]
[1746749450734,0.97062798,103150.0,103140.0,0.62207822]
[1746749451738,0.86231993,103150.0,103140.0,0.81599902]
[1746749453532,0.86231993,103150.0,103140.0,0.62207822]
[1746749454641,0.97062798,103150.0,103140.0,0.57977822]
[1746749457733,0.98062798,103150.0,103140.0,0.57977822]
[1746749458839,0.98062798,103150.0,103140.0,0.16387822]
[1746749463646,0.87231993,103150.0,103140.0,0.16387822]
[1746749464042,0.98062798,103150.0,103140.0,0.20747822]
[1746749466149,0.98062798,103150.0,103140.0,0.24907822]
[1746749467544,0.98062798,103150.0,103140.0,0.20747822]
[1746749468046,0.98062798,103150.0,103140.0,0.24907822]
[1746749468754,1.07933668,103150.0,103140.0,0.20747822]
[1746749469855,1.08175668,103150.0,103140.0,0.20747822]
[1746749470152,1.08175668,103150.0,103140.0,0.16387822]
[1746749473054,1.10657397,103150.0,103140.0,0.16387822]
[1746749483263,1.32183403,103150.0,103140.0,0.16387822]
[1746749483669,1.22488202,103150.0,103140.0,0.16387822]
[1746749483853,0.1939396,103130.0,103120.0,0.52313359]
[1746749484051,1.32944765,103130.0,103120.0,0.68313359]
[1746749484257,1.41554765,103130.0,103120.0,0.68313359]
[1746749485161,1.41554765,103130.0,103120.0,0.64473359]
[1746749485662,1.41554765,103130.0,103120.0,0.64673359]
[1746749486460,1.41554765,103130.0,103120.0,0.64473359]
[1746749486760,1.41654765,103130.0,103120.0,0.64473359]
[1746749487159,1.3082396,103130.0,103120.0,0.64473359]
[1746749487358,1.41654765,103130.0,103120.0,0.64473359]
[1746749487754,1.41754765,103130.0,103120.0,0.64173359]
[1746749487962,1.63990321,103130.0,103120.0,0.64173359]
[1746749488655,1.63982321,103130.0,103120.0,0.64173359]
[1746749488859,1.63982321,103130.0,103120.0,0.2493]
[1746749490067,1.64224321,103130.0,103120.0,0.2493]
[1746749492373,1.51871722,103130.0,103120.0,0.2493]
[1746749497067,1.43139722,103130.0,103120.0,0.2493]
[1746749497379,1.51871722,103130.0,103120.0,0.2493]
[1746749498159,1.43139722,103130.0,103120.0,0.2493]
[1746749498368,1.64224321,103130.0,103120.0,0.2493]
[1746749500270,1.41040917,103130.0,103120.0,0.2493]
[1746749500475,1.51871722,103130.0,103120.0,0.2493]
[1746749500975,1.51871722,103130.0,103120.0,0.2957]
[1746749501876,1.41040917,103130.0,103120.0,0.2957]
[1746749502069,1.51871722,103130.0,103120.0,0.2957]
[1746749504272,1.51867722,103130.0,103120.0,0.2957]
[1746749505379,1.51867722,103130.0,103120.0,0.2493]
[1746749506277,1.43139722,103130.0,103120.0,0.2493]
[1746749506466,1.51867722,103130.0,103120.0,0.2493]
[1746749507978,1.54337364,103130.0,103120.0,0.2493]
[1746749509675,1.50623218,103130.0,103120.0,0.2493]
[1746749513382,1.41895218,103130.0,103120.0,0.2493]
[1746749513688,1.50623218,103130.0,103120.0,0.2493]
[1746749515583,1.43506559,103130.0,103120.0,0.2493]
[1746749515882,1.50623218,103130.0,103120.0,0.2493]
[1746749516785,1.50623218,103130.0,103120.0,0.26428028]
[1746749518480,1.50619218,103130.0,103120.0,0.26428028]
[1746749518691,1.50619218,103130.0,103120.0,0.17498028]
[1746749519485,1.50619218,103130.0,103120.0,0.22248028]
[1746749519981,1.52886584,103130.0,103120.0,0.22248028]
[1746749523286,1.53764584,103130.0,103120.0,0.22248028]
[1746749523479,1.53764584,103130.0,103120.0,0.2075]
[1746749528695,1.53664584,103130.0,103120.0,0.2075]
[1746749528991,1.53864584,103130.0,103120.0,0.2075]
[1746749529191,1.53964584,103130.0,103120.0,0.2075]
[1746749530192,1.53964584,103130.0,103120.0,0.2531]
[1746749530193,1.61081243,103130.0,103120.0,0.2531]
[1746749530394,1.61077243,103130.0,103120.0,0.2531]
[1746749530591,1.53960584,103130.0,103120.0,0.26790147]
[1746749531892,1.53960584,103130.0,103120.0,0.2531]
[1746749532584,1.51708101,103130.0,103120.0,0.2531]
[1746749533095,0.79548101,103130.0,103120.0,0.2531]
[1746749533393,1.51708101,103130.0,103120.0,0.2531]
[1746749533579,1.51708101,103130.0,103120.0,0.2075]
[1746749534891,1.53960584,103130.0,103120.0,0.2075]
[1746749536295,1.53960584,103130.0,103120.0,0.2539]
[1746749537297,1.53960584,103130.0,103120.0,0.26886787]
[1746749539595,0.1939584,103120.0,103110.0,0.43730342]
[1746749539787,0.92049158,103120.0,103110.0,0.53090342]
[1746749540187,0.92049158,103120.0,103110.0,0.69090342]
[1746749540387,0.92778586,103120.0,103110.0,0.69090342]
[1746749540796,0.85661927,103120.0,103110.0,0.69090342]
[1746749541297,0.85861927,103120.0,103110.0,0.69090342]
[1746749541497,0.85961927,103120.0,103110.0,0.69090342]
[1746749542095,0.93078586,103120.0,103110.0,0.69090342]
[1746749542793,0.78845268,103120.0,103110.0,0.69090342]
[1746749542997,0.93078586,103120.0,103110.0,0.69090342]
[1746749545092,0.85961927,103120.0,103110.0,0.69090342]